bitfinex/quotes_SOLUSD_20250228
["timestamp","ask_amount","ask_price","bid_price","bid_amount"]
[1740729227292,22.14216157,127.95,127.94,0.063]
[1740729228175,20.14216157,127.95,127.94,0.063]
[1740729228885,0.14216157,127.95,127.94,0.063]
[1740729229762,22.14216157,127.95,127.94,0.063]
[1740729229957,2.14216157,127.95,127.94,0.063]
[1740729230269,22.14216157,127.95,127.94,0.063]
[1740729231993,20.14216157,127.95,127.94,0.063]
[1740729232169,20.0,127.95,127.94,0.063]
[1740729232370,20.14216157,127.95,127.94,0.063]
[1740729232584,20.0,127.95,127.94,0.063]
[1740729232783,20.14216157,127.95,127.94,0.063]
[1740729233086,20.0,127.95,127.94,0.063]
[1740729233277,9.16,127.96,127.94,0.063]
[1740729233598,6.4962,128.01,127.94,0.063]
[1740729233765,9.16,128.0,127.94,0.063]
[1740729233966,6.4962,128.01,127.94,0.063]
[1740729234272,0.14216157,128.0,127.94,0.063]
[1740729235258,9.16,128.01,127.94,18.71264886]
[1740729236387,82.8,128.0,127.94,18.71264886]
[1740729236963,0.14216157,127.99,127.94,0.063]
[1740729238894,82.8,128.0,127.94,0.063]
[1740729238895,0.14216157,127.97,127.94,0.063]
[1740729239198,82.8,128.03,127.97,20.0]
[1740729239363,82.8,128.02,127.96,7.8149]
[1740729239879,82.8,128.02,127.97,18.64964886]
[1740729240261,82.8,128.02,128.0,18.64964886]
[1740729240782,82.8,128.05,128.0,18.64964886]
[1740729240963,82.8,128.04,127.99,21.6386]
[1740729241369,82.8,128.04,128.0,26.46184886]
[1740729241586,0.03,128.06,128.0,26.46184886]
[1740729241587,0.03,128.06,128.0,45.99304886]
[1740729241886,82.83,128.06,128.03,20.0]
[1740729242291,82.83,128.06,128.02,6.5012]
[1740729242598,82.83,128.06,128.03,18.64964886]
[1740729242798,82.83,128.06,128.05,38.64964886]
[1740729243174,0.03,128.06,128.05,38.64964886]
[1740729243375,82.8,128.1,128.09,38.64964886]
[1740729243583,82.8,128.15,128.1,18.64964886]
[1740729244384,0.0001,128.16,128.14,18.64964886]
[1740729244702,0.0001,128.16,128.13,20.0]
[1740729244992,0.0001,128.16,128.12,20.0]
[1740729245176,0.0001,128.16,128.13,18.64964886]
[1740729245790,0.0001,128.16,128.09,81.6]
[1740729245963,82.8,128.15,128.08,7.8076]
[1740729246364,82.8,128.15,128.09,18.64964886]
[1740729246584,82.8,128.14,128.09,18.64964886]
[1740729248571,82.8,128.14,128.08,11.66772059]
[1740729248572,82.8,128.14,128.08,20.0]
[1740729249094,82.8,128.14,128.07,21.5044]
[1740729249402,82.94216157,128.13,128.02,27.5345]
[1740729249624,82.94216157,128.13,128.0,7.8124]
[1740729249625,0.14216157,128.08,128.0,7.8124]
[1740729249929,82.8,128.07,128.03,20.0]
[1740729250124,82.8,128.07,128.04,18.64964886]
[1740729250493,7.804,128.14,128.04,18.64964886]
[1740729250494,82.8,128.11,128.04,18.64964886]
[1740729250692,82.8,128.11,128.06,18.64964886]
[1740729251289,82.8,128.11,128.08,18.64964886]
[1740729251495,82.8,128.11,128.1,18.64964886]
[1740729251706,0.0001,128.16,128.07,27.8076]
[1740729251707,0.14216157,128.14,128.07,27.8076]
[1740729252302,0.14216157,128.12,128.03,7.8106]
[1740729252508,82.8,128.13,128.03,27.3372]
[1740729252706,82.8,128.13,128.07,38.64964886]
[1740729252910,82.8,128.12,128.07,38.64964886]
[1740729253118,82.8,128.14,128.07,38.64964886]
[1740729253321,0.03,128.12,128.07,38.64964886]
[1740729253502,0.03,128.12,128.09,18.64964886]
[1740729254032,0.03,128.12,128.11,20.0]
[1740729254238,0.03,128.12,128.11,38.64964886]
[1740729255531,0.03,128.12,128.11,46.45534886]
[1740729256403,0.0001,128.16,128.15,20.0]
[1740729256602,0.0001,128.16,128.15,38.64964886]
[1740729257332,0.0001,128.16,128.11,89.4057]
[1740729257527,0.0001,128.16,128.13,20.0]
[1740729258797,0.0001,128.16,128.14,18.64964886]
[1740729260003,0.0001,128.16,128.14,26.45334886]
[1740729260635,82.8,128.15,128.09,23.40513014]
[1740729260923,82.8,128.14,128.08,7.8076]
[1740729261219,82.8,128.13,128.07,7.808]
[1740729261718,82.8,128.13,128.09,7.807]
[1740729261925,82.8,128.13,128.1,20.0]
[1740729262439,82.8,128.13,128.11,18.64964886]
[1740729263012,82.8,128.13,128.1,20.0]
[1740729263408,82.8,128.13,128.11,18.64964886]
[1740729263612,82.8,128.13,128.12,26.45474886]
[1740729263810,82.8,128.15,128.12,7.8051]
[1740729264432,0.0001,128.16,128.12,7.8051]
[1740729264627,0.0001,128.16,128.15,38.64964886]
[1740729265808,0.0001,128.16,128.15,46.45294886]
[1740729266597,0.0001,128.16,128.15,46.59511043]
[1740729266802,0.0001,128.16,128.15,48.59511043]
[1740729267505,0.0001,128.16,128.15,130.19511043]
[1740729267822,0.0001,128.16,128.15,128.19511043]
[1740729268248,0.0001,128.16,128.15,128.05294886]
[1740729268624,0.0001,128.16,128.15,128.19511043]
[1740729270229,0.0001,128.16,128.15,133.83323557]
[1740729270409,0.063,128.22,128.2,18.64964886]
[1740729271210,0.0001,128.22,128.2,18.64964886]
[1740729271409,0.0001,128.24,128.23,20.14216157]
[1740729271729,0.0001,128.24,128.23,38.79181043]
[1740729272027,0.0001,128.24,128.23,46.59021043]
[1740729272434,0.0001,128.24,128.23,48.59021043]
[1740729272938,0.0001,128.24,128.23,133.82713192]
[1740729273107,0.03,128.29,128.28,18.64964886]
[1740729273304,0.063,128.35,128.33,20.0]
[1740729273944,0.063,128.35,128.33,27.7922]
[1740729274310,0.063,128.35,128.34,18.64964886]
[1740729274634,0.063,128.35,128.33,20.0]
[1740729274812,0.063,128.35,128.29,19.4861]
[1740729275014,0.063,128.35,128.31,3.98069652]
[1740729275218,0.063,128.35,128.3,7.7942]
[1740729275617,0.063,128.35,128.31,18.64964886]
[1740729275820,0.063,128.35,128.27,90.74]
[1740729276117,82.8,128.34,128.24,5.10988209]
[1740729276320,82.8,128.34,128.25,18.64964886]
[1740729276730,82.8,128.34,128.28,20.0]
[1740729276912,82.8,128.33,128.28,20.0]
[1740729277230,88.9303,128.32,128.24,7.7978]
[1740729277430,82.8,128.31,128.24,7.7978]
[1740729278532,82.8,128.31,128.26,18.64964886]
[1740729278923,82.8,128.31,128.25,26.44654886]
[1740729279121,82.8,128.31,128.25,30.42214922]
[1740729279420,82.8,128.3,128.25,30.42234922]
[1740729279737,82.8,128.3,128.25,22.62524922]
[1740729280116,82.8,128.3,128.25,30.42234922]
[1740729281827,82.8,128.29,128.22,7.8619]
[1740729282039,82.8,128.28,128.22,11.85345695]
[1740729282220,82.8,128.28,128.22,4.05455695]
[1740729282417,82.8,128.28,128.23,18.64964886]
[1740729282719,82.8,128.27,128.22,0.063]
[1740729283118,82.8,128.27,128.22,18.71264886]
[1740729283318,82.8,128.26,128.22,0.063]
[1740729283521,82.8,128.25,128.22,0.063]
[1740729283920,89.59776157,128.24,128.22,0.063]
[1740729284331,82.8,128.23,128.22,0.063]
[1740729284522,6.6556,128.24,128.22,0.063]
[1740729286242,82.8,128.24,128.22,0.063]
[1740729287546,90.5979,128.24,128.22,0.063]
[1740729287854,82.94216157,128.23,128.22,0.063]
[1740729288055,0.14216157,128.23,128.22,0.063]
[1740729288421,2.14216157,128.23,128.22,0.063]
[1740729288623,8.45286157,128.22,128.12,7.868]
[1740729289049,8.45286157,128.22,128.13,18.64964886]
[1740729289753,6.3107,128.22,128.15,18.64964886]
[1740729290548,6.3107,128.22,128.18,20.0]
[1740729291264,0.14216157,128.21,128.13,36.4356]
[1740729291429,9.12,128.2,128.12,11.78138403]
[1740729291927,16.9203,128.2,128.13,18.64964886]
[1740729292757,9.12,128.2,128.13,18.64964886]
[1740729293623,9.12,128.2,128.14,7.8039]
[1740729293835,82.8,128.2,128.17,20.0]
[1740729294042,82.8,128.2,128.18,18.64964886]
[1740729295036,82.8,128.23,128.21,20.0]
[1740729295234,6.6091,128.25,128.22,18.64964886]
[1740729295835,6.6091,128.25,128.22,26.44834886]
[1740729297441,82.8,128.27,128.22,26.44834886]
[1740729297645,82.8,128.27,128.23,18.64964886]
[1740729298053,82.8,128.27,128.22,7.7987]
[1740729298941,82.8,128.27,128.21,31.73351137]
[1740729300156,82.8,128.27,128.21,23.93401137]
[1740729300374,82.8,128.27,128.21,31.73361137]
[1740729300864,82.8,128.27,128.22,18.64964886]
[1740729301050,82.8,128.27,128.21,31.73361137]
[1740729301358,13.8376,128.28,128.17,83.6]
[1740729301359,82.94216157,128.26,128.2,7.8001]
[1740729302251,82.8,128.25,128.2,7.8001]
[1740729302652,82.8,128.25,128.22,0.063]
[1740729303055,0.14216157,128.24,128.22,0.063]
[1740729303247,82.8,128.23,128.22,0.063]
[1740729303636,0.14216157,128.23,128.22,0.063]
[1740729304563,7.94056157,128.23,128.22,0.063]
[1740729304942,0.14216157,128.23,128.22,0.063]
[1740729305156,7.94056157,128.23,128.22,0.063]
[1740729305550,14.30586157,128.23,128.22,0.063]
[1740729306266,6.50746157,128.23,128.22,0.063]
[1740729306564,14.30586157,128.23,128.22,0.063]
[1740729307071,6.50746157,128.23,128.22,0.063]
[1740729307240,6.3653,128.23,128.22,0.063]
[1740729308064,9.12,128.27,128.22,0.063]
[1740729308264,15.543,128.27,128.22,0.063]
[1740729308445,23.3391,128.27,128.22,0.063]
[1740729308653,18.64964886,128.26,128.22,0.063]
[1740729308968,0.14216157,128.25,128.22,0.063]
[1740729309146,15.543,128.27,128.22,0.063]
[1740729310849,6.423,128.27,128.22,0.063]
[1740729311052,14.2191,128.27,128.22,0.063]
[1740729311250,0.14216157,128.26,128.22,0.063]
[1740729311955,82.8,128.27,128.22,0.063]
[1740729312145,82.8,128.27,128.23,20.0]
[1740729312568,82.8,128.27,128.22,0.063]
[1740729313960,82.8,128.27,128.22,4.07451571]
[1740729314147,0.03,128.29,128.24,20.0]
[1740729314351,0.03,128.29,128.26,20.0]
[1740729314551,0.03,128.29,128.27,7.796]
[1740729315271,0.03,128.29,128.25,7.7972]
[1740729315568,0.03,128.27,128.25,7.7972]
[1740729315771,82.8,128.26,128.23,7.7984]
[1740729315966,82.8,128.25,128.23,7.7984]
[1740729316763,82.8,128.25,128.22,7.862]
[1740729316960,82.8,128.25,128.22,27.3597]
[1740729317174,82.8,128.25,128.24,20.0]
[1740729317971,0.03,128.27,128.25,18.64964886]
[1740729318276,0.03,128.29,128.28,20.0]
[1740729318576,0.0001,128.29,128.28,38.79181043]
[1740729318770,82.8,128.34,128.28,66.07581043]
[1740729319284,0.063,128.35,128.32,20.0]
[1740729320858,0.063,128.35,128.33,7.7924]
[1740729321177,0.063,128.35,128.32,27.7929]
[1740729321353,82.8,128.34,128.29,20.0]
[1740729321554,82.8,128.33,128.3,18.64964886]
[1740729322470,82.8,128.33,128.32,20.0]
[1740729322776,0.063,128.35,128.31,20.0]
[1740729322971,0.063,128.35,128.32,7.793]
[1740729323356,0.063,128.35,128.34,20.0]
[1740729323757,0.063,128.35,128.34,38.64964886]
[1740729323958,0.063,128.35,128.34,20.0]
[1740729324477,0.063,128.35,128.34,38.64964886]
[1740729324976,0.063,128.35,128.34,46.44144886]
[1740729325664,0.063,128.35,128.34,27.7918]
[1740729326063,0.063,128.35,128.34,46.44144886]
[1740729326677,0.063,128.35,128.34,27.7918]
[1740729327978,0.063,128.35,128.34,46.58361043]
[1740729328289,0.063,128.4,128.38,20.0]
[1740729328471,0.063,128.4,128.39,18.64964886]
[1740729328964,0.063,128.4,128.39,26.43834886]
[1740729329968,0.063,128.4,128.39,30.2654862]
[1740729330381,0.063,128.4,128.39,11.61583734]
[1740729330858,0.063,128.4,128.39,30.40764777]
[1740729331158,0.063,128.4,128.39,30.2654862]
[1740729331979,0.063,128.4,128.36,15.5176]
[1740729332154,0.063,128.4,128.39,20.0]
[1740729332766,82.8,128.39,128.32,7.793]
[1740729332992,82.8,128.38,128.32,7.793]
[1740729333681,82.8,128.38,128.32,11.70662546]
[1740729333990,0.063,128.4,128.36,7.7905]
[1740729334183,0.063,128.4,128.37,18.64964886]
[1740729334891,0.063,128.4,128.39,20.0]
[1740729335261,0.063,128.4,128.37,18.64964886]
[1740729335479,0.063,128.4,128.39,38.64964886]
[1740729336060,0.063,128.4,128.36,7.7905]
[1740729336259,0.063,128.4,128.34,7.7913]
[1740729337085,0.063,128.4,128.35,18.64964886]
[1740729337283,0.063,128.4,128.36,7.7905]
[1740729337485,0.063,128.4,128.36,20.0]
[1740729337981,0.063,128.4,128.34,18.64964886]
[1740729339278,0.063,128.4,128.37,26.43954886]
[1740729339479,0.063,128.4,128.39,38.64964886]
[1740729340687,0.063,128.4,128.39,20.0]
[1740729340889,0.063,128.4,128.37,7.7899]
[1740729341391,0.063,128.4,128.37,26.43954886]
[1740729342666,82.863,128.4,128.36,16.8904]
[1740729342963,82.8,128.39,128.36,7.7904]
[1740729343367,82.8,128.39,128.34,27.271]
[1740729343571,82.8,128.39,128.34,7.7918]
[1740729343867,82.8,128.39,128.35,18.64964886]
[1740729345384,0.063,128.4,128.38,46.43894886]
[1740729345801,0.063,128.4,128.38,27.7893]
[1740729346880,0.063,128.4,128.36,18.64964886]
[1740729347074,0.063,128.4,128.34,7.7918]
[1740729347274,0.063,128.4,128.35,18.64964886]
[1740729347779,0.063,128.4,128.35,26.44064886]
[1740729347978,82.8,128.39,128.34,7.7916]
[1740729349791,89.1076,128.39,128.34,7.7916]
[1740729350183,89.1076,128.39,128.34,7.8546]
[1740729351588,82.8,128.38,128.34,0.063]
[1740729357111,82.8,128.37,128.34,0.063]
[1740729357606,84.4278,128.37,128.34,0.063]
[1740729358183,82.94216157,128.36,128.34,0.063]
[1740729359195,96.84986157,128.35,128.26,7.7965]
[1740729359403,0.14216157,128.33,128.26,7.7965]
[1740729359693,6.2957,128.29,128.24,0.063]
[1740729359897,82.8,128.28,128.24,0.063]
[1740729360712,2.0,128.32,128.24,0.063]
[1740729360713,1.5576,128.37,128.28,20.0]
[1740729360881,1.5576,128.37,128.32,20.0]
[1740729361086,1.5576,128.37,128.28,19.4872]
[1740729361389,82.8,128.36,128.29,7.7948]
[1740729361810,82.8,128.36,128.3,18.64964886]
[1740729363413,82.8,128.36,128.32,18.64964886]
[1740729363624,89.4187,128.39,128.34,20.0]
[1740729363921,0.063,128.4,128.35,18.64964886]
[1740729364135,0.063,128.4,128.38,20.0]
[1740729364722,0.063,128.4,128.39,18.64964886]
[1740729365200,0.063,128.4,128.38,7.7893]
[1740729365398,0.063,128.4,128.39,20.0]
[1740729365593,0.063,128.4,128.38,7.7893]
[1740729366007,0.063,128.4,128.37,26.43944886]
[1740729366295,0.063,128.4,128.35,3.85850944]
[1740729367094,0.063,128.4,128.34,18.64964886]
[1740729367395,0.063,128.4,128.32,81.6]
[1740729367594,6.6365,128.38,128.28,220.1]
[1740729367796,6.6365,128.38,128.29,7.7948]
[1740729368000,6.6365,128.38,128.31,3.88039947]
[1740729368220,82.8,128.37,128.31,3.88039947]
[1740729369306,0.063,128.4,128.38,0.14216157]
[1740729369619,0.063,128.42,128.41,38.79181043]
[1740729369816,0.063,128.44,128.42,20.79181043]
[1740729370122,11.81890305,128.45,128.44,38.64964886]
[1740729370324,11.81890305,128.45,128.44,38.79181043]
[1740729370620,11.81890305,128.45,128.44,38.64964886]
[1740729370821,11.81890305,128.45,128.44,46.43534886]
[1740729371719,11.81890305,128.45,128.44,18.64964886]
[1740729372114,11.81890305,128.45,128.44,26.43534886]
[1740729372423,0.063,128.47,128.45,18.64964886]
[1740729372629,0.063,128.47,128.43,7.7862]
[1740729372917,0.063,128.47,128.44,18.64964886]
[1740729373423,0.063,128.47,128.43,26.43584886]
[1740729373590,0.063,128.47,128.44,18.79181043]
[1740729374026,0.063,128.47,128.43,7.7862]
[1740729374211,0.063,128.47,128.45,20.0]
[1740729374830,0.063,128.47,128.43,18.64964886]
[1740729375323,0.063,128.47,128.43,26.43584886]
[1740729376400,0.063,128.47,128.42,9.08]
[1740729376601,0.063,128.47,128.42,18.64964886]
[1740729377097,0.063,128.47,128.42,26.43644886]
[1740729377504,82.8,128.46,128.39,7.7883]
[1740729377934,82.8,128.46,128.4,18.64964886]
[1740729378336,0.063,128.47,128.41,0.14216157]
[1740729378536,0.063,128.47,128.42,18.64964886]
[1740729378902,0.063,128.47,128.43,7.7863]
[1740729379305,0.063,128.47,128.42,7.7869]
[1740729379603,0.063,128.47,128.43,18.64964886]
[1740729380103,0.063,128.47,128.46,18.64964886]
[1740729380907,0.03,128.48,128.46,34.27074]
[1740729381111,0.03,128.53,128.5,18.64964886]
[1740729382337,0.03,128.53,128.5,26.43134886]
[1740729383107,0.03,128.53,128.5,18.64964886]
[1740729384133,0.03,128.53,128.5,26.43164886]
[1740729384530,0.03,128.53,128.5,18.64964886]
[1740729385044,0.03,128.53,128.5,26.43164886]
[1740729385840,0.03,128.53,128.52,38.64964886]
[1740729386143,0.03,128.53,128.52,38.79181043]
[1740729386442,0.03,128.53,128.52,128.17261043]
[1740729388126,0.03,128.53,128.52,108.17261043]
[1740729388330,6.0719,128.63,128.57,18.64964886]
[1740729388646,82.8,128.64,128.58,0.14216157]
[1740729388830,0.03,128.66,128.58,0.14216157]
[1740729388831,82.83,128.66,128.58,0.14216157]
[1740729389021,82.8,128.65,128.58,0.14216157]
[1740729389218,82.8,128.65,128.57,7.7778]
[1740729389831,82.8,128.64,128.57,7.7778]
[1740729390043,82.8,128.64,128.59,18.64964886]
[1740729391335,82.8,128.63,128.59,18.64964886]
[1740729391741,82.8,128.63,128.59,7.7764]
[1740729391920,82.8,128.63,128.57,22.59424765]
[1740729392245,82.8,128.63,128.58,7.7772]
[1740729392436,82.8,128.63,128.59,18.64964886]
[1740729393841,82.8,128.63,128.57,11.72219879]
[1740729394017,82.8,128.63,128.56,18.64964886]
[1740729394018,82.8,128.62,128.56,26.42784886]
[1740729394351,7.7744,128.63,128.53,131.24]
[1740729394352,82.8,128.61,128.53,131.24]
[1740729394552,90.576,128.6,128.53,139.0201]
[1740729394852,82.8,128.6,128.53,139.0201]
[1740729395221,82.8,128.6,128.54,18.64964886]
[1740729395425,82.8,128.6,128.54,22.50030948]
[1740729396148,82.8,128.6,128.54,30.27940948]
[1740729396344,82.8,128.63,128.54,111.87940948]
[1740729396554,82.8,128.63,128.57,20.0]
[1740729396730,82.8,128.63,128.58,18.64964886]
[1740729397138,90.5743,128.63,128.57,20.0]
[1740729397331,90.5743,128.63,128.56,18.64964886]
[1740729398155,90.5743,128.63,128.56,26.42744886]
[1740729398723,82.83,128.63,128.56,26.42744886]
[1740729399359,90.6043,128.63,128.56,26.42744886]
[1740729399748,82.83,128.63,128.56,26.42744886]
[1740729399956,90.6043,128.63,128.56,26.42744886]
[1740729400352,82.83,128.63,128.56,26.42744886]
[1740729401164,0.03,128.63,128.59,20.0]
[1740729401348,0.03,128.63,128.6,18.64964886]
[1740729402082,0.03,128.63,128.61,0.14216157]
[1740729402378,0.03,128.63,128.62,26.42444886]
[1740729403747,0.03,128.66,128.64,0.14216157]
[1740729403948,0.03,128.66,128.65,38.64964886]
[1740729404443,0.03,128.66,128.65,46.42264886]
[1740729404959,0.03,128.66,128.65,46.56481043]
[1740729406168,0.03,128.66,128.65,50.55586658]
[1740729406466,89.1511,128.73,128.67,0.14216157]
[1740729406669,82.8,128.73,128.69,20.0]
[1740729406873,89.1651,128.75,128.7,18.64964886]
[1740729407378,6.3651,128.75,128.7,18.64964886]
[1740729407679,0.03,128.76,128.7,18.64964886]
[1740729408559,0.03,128.76,128.69,20.0]
[1740729408867,82.8,128.75,128.69,20.0]
[1740729409171,82.8,128.75,128.68,7.7712]
[1740729409753,82.8,128.74,128.68,7.7712]
[1740729410554,82.8,128.74,128.69,18.64964886]
[1740729410889,90.5676,128.74,128.67,26.42124886]
[1740729411168,82.8,128.73,128.67,26.42124886]
[1740729411377,82.8,128.73,128.67,18.64964886]
[1740729412588,82.8,128.73,128.67,7.7716]
[1740729412876,82.8,128.72,128.66,18.71264886]
[1740729413061,82.8,128.72,128.66,26.48494886]
[1740729413062,6.5756,128.71,128.66,26.48494886]
[1740729413761,89.3756,128.71,128.66,18.71264886]
[1740729414088,89.3756,128.71,128.66,26.48494886]
[1740729416263,89.3756,128.71,128.66,18.71264886]
[1740729416776,89.3756,128.71,128.66,26.48494886]
[1740729418259,84.94216157,128.7,128.66,0.063]
[1740729418662,82.8,128.69,128.66,0.063]
[1740729420162,7.7712,128.68,128.66,0.063]
[1740729420476,82.8,128.67,128.66,0.063]
[1740729421072,0.14216157,128.68,128.66,0.063]
[1740729421563,7.7706,128.69,128.66,0.063]
[1740729421885,7.7701,128.7,128.66,0.063]
[1740729422270,27.1951,128.7,128.66,0.063]
[1740729422472,82.8,128.69,128.66,0.063]
[1740729423471,7.7712,128.68,128.66,0.063]
[1740729424170,82.8,128.69,128.66,0.063]
[1740729424488,90.5706,128.69,128.66,0.063]
[1740729425186,82.8,128.68,128.66,0.063]
[1740729426989,89.3756,128.71,128.66,18.71264886]
[1740729427163,82.8,128.74,128.66,18.71264886]
[1740729427363,82.8,128.74,128.68,18.64964886]
[1740729428469,90.5678,128.74,128.68,18.64964886]
[1740729429597,90.5678,128.74,128.68,26.42074886]
[1740729429766,82.8,128.74,128.68,26.42074886]
[1740729430770,82.8,128.74,128.68,45.84874886]
[1740729432370,82.8,128.74,128.68,26.42074886]
[1740729433371,0.03,128.75,128.69,0.14216157]
[1740729433889,0.03,128.75,128.71,18.64964886]
[1740729434280,0.03,128.75,128.72,0.14216157]
[1740729434478,0.03,128.75,128.74,38.64964886]
[1740729434997,0.03,128.75,128.74,44.3864798]
[1740729435183,0.03,128.76,128.75,18.79181043]
[1740729435490,82.8,128.82,128.79,18.64964886]
[1740729435995,82.8,128.82,128.79,26.41374886]
[1740729436773,82.8,128.85,128.79,26.41374886]
[1740729437391,82.8,128.85,128.79,45.82514886]
[1740729438290,6.5699,128.87,128.79,45.82514886]
[1740729439076,82.8,128.87,128.81,18.64964886]
[1740729440090,82.8,128.87,128.81,38.05724886]
[1740729440383,82.8,128.87,128.83,18.64964886]
[1740729440590,0.03,128.88,128.83,18.64964886]
[1740729440794,0.03,128.88,128.84,10.72076157]
[1740729440969,0.03,128.88,128.87,18.64964886]
[1740729441170,0.03,128.88,128.87,18.79181043]
[1740729441401,90.5116,128.95,128.87,18.79181043]
[1740729441693,88.8915,128.95,128.87,18.79181043]
[1740729441876,82.8,128.95,128.88,0.14216157]
[1740729442081,82.8,128.95,128.9,18.64964886]
[1740729442583,82.8,128.95,128.88,7.7589]
[1740729442784,6.5813,128.93,128.84,1.5386]
[1740729443089,20.0,128.89,128.8,1.5075]
[1740729443407,82.8,128.88,128.79,3.8360307]
[1740729443599,82.8,128.88,128.8,18.64964886]
[1740729444401,82.8,128.88,128.8,26.41344886]
[1740729444776,90.5593,128.88,128.8,18.64964886]
[1740729445096,92.5593,128.88,128.8,18.64964886]
[1740729445872,6.50126157,128.87,128.77,7.7657]
[1740729446078,7.7609,128.85,128.76,7.7662]
[1740729446388,82.8,128.84,128.75,7.7669]
[1740729446596,82.8,128.86,128.78,20.0]
[1740729446806,82.8,128.86,128.79,18.64964886]
[1740729447371,90.5603,128.86,128.79,18.64964886]
[1740729447568,82.8,128.85,128.79,18.64964886]
[1740729447774,82.8,128.84,128.78,9.02]
[1740729448094,7.7627,128.82,128.75,11.6918019]
[1740729448407,82.8,128.81,128.76,18.64964886]
[1740729448594,82.8,128.81,128.74,16.7874]
[1740729448893,82.8,128.81,128.73,7.768]
[1740729449095,82.8,128.81,128.74,18.64964886]
[1740729449297,6.428,128.8,128.74,18.64964886]
[1740729450100,82.8,128.81,128.74,26.41714886]
[1740729450403,82.8,128.81,128.74,45.83604886]
[1740729450583,82.8,128.83,128.75,0.14216157]
[1740729451094,82.8,128.83,128.77,3.90958439]
[1740729451296,6.2674,128.84,128.78,18.64964886]
[1740729451597,82.8,128.85,128.78,18.64964886]
[1740729451900,82.8,128.85,128.79,27.1759]
[1740729452296,89.2749,128.87,128.8,18.64964886]
[1740729452498,9.02,128.88,128.8,18.64964886]
[1740729452499,82.8,128.9,128.81,0.14216157]
[1740729452795,82.8,128.91,128.83,20.0]
[1740729452999,84.4477,128.92,128.84,18.64964886]
[1740729453294,82.8,128.92,128.83,29.02]
[1740729453486,82.94216157,128.91,128.81,3.89827482]
[1740729453672,82.8,128.9,128.82,18.64964886]
[1740729453875,82.8,128.9,128.84,18.64964886]
[1740729454296,6.3546,128.93,128.84,18.64964886]
[1740729454503,6.3546,128.93,128.85,0.14216157]
[1740729454886,82.8,128.94,128.85,0.14216157]
[1740729455089,82.8,128.94,128.88,18.64964886]
[1740729455283,82.8,128.94,128.88,38.64964886]
[1740729455487,82.8,128.94,128.88,18.64964886]
[1740729455686,82.8,128.94,128.86,0.14216157]
[1740729455917,82.8,128.94,128.86,27.161]
[1740729456100,82.8,128.93,128.86,7.7603]
[1740729456301,82.8,128.93,128.87,18.64964886]
[1740729457806,82.8,128.93,128.88,7.7591]
[1740729457996,82.8,128.93,128.86,7.7603]
[1740729458416,82.8,128.93,128.87,18.64964886]
[1740729459683,6.1237,128.97,128.87,18.64964886]
[1740729459684,82.8,128.95,128.87,18.64964886]
[1740729459884,82.8,128.95,128.88,19.3978]
[1740729460105,82.8,128.95,128.89,18.64964886]
[1740729461596,82.8,128.95,128.89,22.63464301]
[1740729462000,82.8,128.95,128.9,7.7579]
[1740729465300,82.8,128.95,128.86,40.60766157]